[Event "*** Titled Tuesday Blitz"]
[Site "Chess.com"]
[Date "2021.04.20"]
[Round "11"]
[White "Kapibara_Warri0r"]
[Black "maximych26"]
[Result "0-1"]
[WhiteElo "2198"]
[BlackElo "2272"]
[TimeControl "180+1"]
[EndTime "12:03:08 PDT"]
[Termination "maximych26 won by resignation"]

1. e4 {[%clk 0:03:00.9]} 1... c6 {[%clk 0:02:59.6]} 2. d4 {[%clk 0:03:00.3]}
2... d5 {[%clk 0:02:57.3]} 3. Nc3 {[%clk 0:03:00.9]} 3... dxe4 {[%clk
0:02:56.2]} 4. Nxe4 {[%clk 0:03:01.8]} 4... Nf6 {[%clk 0:02:56.5]} 5. Nxf6+
{[%clk 0:03:00.6]} 5... gxf6 {[%clk 0:02:56.8]} 6. c3 {[%clk 0:02:55.8]} 6...
Bf5 {[%clk 0:02:56.8]} 7. Nf3 {[%clk 0:02:54]} 7... Rg8 {[%clk 0:02:54.8]} 8.
Bf4 {[%clk 0:02:42.2]} 8... Qd5 {[%clk 0:02:54.2]} 9. g3 {[%clk 0:02:09.2]} 9...
Qe4+ {[%clk 0:02:50.4]} 10. Qe2 {[%clk 0:02:06.1]} 10... Nd7 {[%clk 0:02:48.1]}
11. Bg2 {[%clk 0:02:01.3]} 11... Nb6 {[%clk 0:02:47.4]} 12. Nh4 {[%clk
0:01:44.3]} 12... Qxe2+ {[%clk 0:02:43.2]} 13. Kxe2 {[%clk 0:01:45.2]} 13...
Bg4+ {[%clk 0:02:43.4]} 14. f3 {[%clk 0:01:33.2]} 14... Bd7 {[%clk 0:02:37.3]}
15. b3 {[%clk 0:01:27.5]} 15... Nd5 {[%clk 0:02:36.4]} 16. Bd2 {[%clk
0:01:27.6]} 16... O-O-O {[%clk 0:02:33.7]} 17. f4 {[%clk 0:01:14.1]} 17... Bg4+
{[%clk 0:02:31.3]} 18. Nf3 {[%clk 0:01:10.4]} 18... e6 {[%clk 0:02:29.2]} 19. h3
{[%clk 0:01:09.7]} 19... Bf5 {[%clk 0:02:22.8]} 20. Nh4 {[%clk 0:01:02.7]} 20...
Rxg3 {[%clk 0:02:06.5]} 21. Nxf5 {[%clk 0:00:56.1]} 21... Rxg2+ {[%clk
0:02:03.4]} 22. Kf3 {[%clk 0:00:49.2]} 22... Rxd2 {[%clk 0:02:02]} 23. Nh4
{[%clk 0:00:41.6]} 23... Rd3+ {[%clk 0:01:59.4]} 24. Kf2 {[%clk 0:00:36.6]}
24... Nxf4 {[%clk 0:01:57.9]} 0-1

[Event "*** Titled Tuesday Blitz"]
[Site "Chess.com"]
[Date "2021.04.20"]
[Round "11"]
[White "djano"]
[Black "KeithArkell"]
[Result "1-0"]
[WhiteElo "2474"]
[BlackElo "2574"]
[TimeControl "180+1"]
[EndTime "12:03:30 PDT"]
[Termination "djano won by resignation"]

1. e4 {[%clk 0:03:00.9]} 1... c6 {[%clk 0:02:58.6]} 2. d4 {[%clk 0:02:59.5]}
2... d5 {[%clk 0:02:58.5]} 3. exd5 {[%clk 0:03:00.1]} 3... cxd5 {[%clk
0:02:58.8]} 4. Bd3 {[%clk 0:03:00.5]} 4... Nf6 {[%clk 0:02:59.1]} 5. c3 {[%clk
0:03:00.5]} 5... Nc6 {[%clk 0:02:59.3]} 6. Bf4 {[%clk 0:03:00.4]} 6... Bg4
{[%clk 0:02:59.1]} 7. Qb3 {[%clk 0:03:00]} 7... Qd7 {[%clk 0:02:59.5]} 8. Nd2
{[%clk 0:02:59.8]} 8... e6 {[%clk 0:03:00]} 9. Ngf3 {[%clk 0:03:00.2]} 9... Bxf3
{[%clk 0:03:00.5]} 10. Nxf3 {[%clk 0:03:00.3]} 10... Bd6 {[%clk 0:03:01.3]} 11.
Bxd6 {[%clk 0:03:00.5]} 11... Qxd6 {[%clk 0:03:02.2]} 12. O-O {[%clk 0:02:58.8]}
12... O-O {[%clk 0:03:02.3]} 13. Rae1 {[%clk 0:02:58.8]} 13... Qc7 {[%clk
0:03:02.4]} 14. Qc2 {[%clk 0:02:45.8]} 14... g6 {[%clk 0:02:58.2]} 15. Qd2
{[%clk 0:02:27.4]} 15... Rfc8 {[%clk 0:02:56.9]} 16. Qh6 {[%clk 0:02:16.8]}
16... Qe7 {[%clk 0:02:56.7]} 17. Ng5 {[%clk 0:01:53.9]} 17... Qf8 {[%clk
0:02:56.4]} 18. Qh4 {[%clk 0:01:50.8]} 18... Qg7 {[%clk 0:02:56.2]} 19. f4
{[%clk 0:01:41.2]} 19... Re8 {[%clk 0:02:52.1]} 20. Re3 {[%clk 0:01:35.5]} 20...
Rab8 {[%clk 0:02:50.7]} 21. a3 {[%clk 0:01:30.6]} 21... b5 {[%clk 0:02:50]} 22.
b4 {[%clk 0:01:31]} 22... a5 {[%clk 0:02:49.4]} 23. g4 {[%clk 0:01:23.7]} 23...
axb4 {[%clk 0:02:46.2]} 24. axb4 {[%clk 0:01:22.9]} 24... Ne7 {[%clk 0:02:44.9]}
25. Rfe1 {[%clk 0:01:03.5]} 25... Nc8 {[%clk 0:02:43.8]} 26. f5 {[%clk
0:00:35.5]} 26... gxf5 {[%clk 0:02:43.1]} 27. gxf5 {[%clk 0:00:35.6]} 27... h6
{[%clk 0:02:43.3]} 28. Rg3 {[%clk 0:00:35.9]} 28... Kh8 {[%clk 0:02:38.7]} 29.
Nxe6 {[%clk 0:00:33.6]} 29... fxe6 {[%clk 0:02:27]} 30. Rxg7 {[%clk 0:00:30.9]}
30... Kxg7 {[%clk 0:02:27.4]} 31. fxe6 {[%clk 0:00:29]} 31... Rg8 {[%clk
0:02:18]} 32. Kh1 {[%clk 0:00:28.1]} 32... Nh7 {[%clk 0:02:09.4]} 33. Qg3+
{[%clk 0:00:24.8]} 1-0

[Event "*** Titled Tuesday Blitz"]
[Site "Chess.com"]
[Date "2021.04.20"]
[Round "11"]
[White "MeekMammoth2"]
[Black "bazar-wokzal"]
[Result "0-1"]
[WhiteElo "2455"]
[BlackElo "2679"]
[TimeControl "180+1"]
[EndTime "12:03:35 PDT"]
[Termination "bazar-wokzal won by resignation"]

1. e4 {[%clk 0:03:00.9]} 1... Nc6 {[%clk 0:02:59.3]} 2. d4 {[%clk 0:03:00.2]}
2... d5 {[%clk 0:02:59.4]} 3. exd5 {[%clk 0:03:00.6]} 3... Qxd5 {[%clk
0:02:59.1]} 4. Nf3 {[%clk 0:03:00.5]} 4... Bg4 {[%clk 0:02:58.7]} 5. Be2 {[%clk
0:03:00.8]} 5... O-O-O {[%clk 0:02:58.1]} 6. Be3 {[%clk 0:02:54.2]} 6... Nf6
{[%clk 0:02:55.3]} 7. O-O {[%clk 0:02:53.7]} 7... Qh5 {[%clk 0:02:53]} 8. c4
{[%clk 0:02:47.8]} 8... Nxd4 {[%clk 0:02:38.9]} 9. Nxd4 {[%clk 0:01:58.5]} 9...
e5 {[%clk 0:02:38.3]} 10. Bxg4+ {[%clk 0:01:56.9]} 10... Nxg4 {[%clk 0:02:38.2]}
11. h3 {[%clk 0:01:56.6]} 11... exd4 {[%clk 0:02:26]} 12. hxg4 {[%clk
0:01:55.6]} 12... Qe5 {[%clk 0:02:25.6]} 13. Bc1 {[%clk 0:01:45.1]} 13... Bd6
{[%clk 0:02:25.2]} 14. f4 {[%clk 0:01:41]} 14... Qc5 {[%clk 0:02:24.7]} 15. Nd2
{[%clk 0:01:30.9]} 15... d3+ {[%clk 0:02:19.1]} 16. Kh1 {[%clk 0:01:30.5]} 16...
h5 {[%clk 0:02:18.8]} 17. g5 {[%clk 0:01:28.5]} 17... h4 {[%clk 0:02:18.7]} 18.
Ne4 {[%clk 0:01:26.6]} 18... Qxc4 {[%clk 0:02:17.5]} 19. Nxd6+ {[%clk
0:01:23.7]} 19... Rxd6 {[%clk 0:02:17.2]} 20. Be3 {[%clk 0:01:19.1]} 20... h3
{[%clk 0:02:17]} 21. g3 {[%clk 0:01:17.8]} 21... Re6 {[%clk 0:02:12.7]} 22. Qf3
{[%clk 0:01:07]} 22... Rhe8 {[%clk 0:02:11.8]} 23. Rac1 {[%clk 0:00:57.1]} 23...
Qxa2 {[%clk 0:02:08.7]} 24. Bf2 {[%clk 0:00:31.9]} 24... d2 {[%clk 0:02:02.6]}
25. Rc2 {[%clk 0:00:27.9]} 25... Re2 {[%clk 0:02:00.1]} 26. Qc3 {[%clk
0:00:22.6]} 26... Qd5+ {[%clk 0:01:54.1]} 0-1

[Event "*** Titled Tuesday Blitz"]
[Site "Chess.com"]
[Date "2021.04.20"]
[Round "11"]
[White "AttractiveMustard"]
[Black "OlifantCZ"]
[Result "1-0"]
[WhiteElo "2374"]
[BlackElo "2257"]
[TimeControl "180+1"]
[EndTime "12:03:39 PDT"]
[Termination "AttractiveMustard won by resignation"]

1. e4 {[%clk 0:02:59.7]} 1... e6 {[%clk 0:02:59.6]} 2. d4 {[%clk 0:02:58.5]}
2... d5 {[%clk 0:03:00.1]} 3. Nd2 {[%clk 0:02:54.6]} 3... c5 {[%clk 0:02:59.1]}
4. exd5 {[%clk 0:02:50.9]} 4... Qxd5 {[%clk 0:02:56.5]} 5. dxc5 {[%clk
0:02:49.3]} 5... Bxc5 {[%clk 0:02:55.3]} 6. Ngf3 {[%clk 0:02:47]} 6... Nf6
{[%clk 0:02:54.2]} 7. Bc4 {[%clk 0:02:46.4]} 7... Qc6 {[%clk 0:02:54.2]} 8. Qe2
{[%clk 0:02:43.1]} 8... O-O {[%clk 0:02:53.8]} 9. O-O {[%clk 0:02:42.6]} 9...
Nbd7 {[%clk 0:02:53.3]} 10. Bd3 {[%clk 0:02:31.2]} 10... a6 {[%clk 0:02:49.5]}
11. Ne4 {[%clk 0:02:29.5]} 11... Nxe4 {[%clk 0:02:47.3]} 12. Bxe4 {[%clk
0:02:30.4]} 12... Qc7 {[%clk 0:02:47]} 13. Bg5 {[%clk 0:02:28.1]} 13... Ne5
{[%clk 0:02:37.7]} 14. Nxe5 {[%clk 0:02:25.8]} 14... f6 {[%clk 0:02:18.7]} 15.
Bf4 {[%clk 0:01:11.4]} 15... Bd6 {[%clk 0:01:58.9]} 16. Bxh7+ {[%clk 0:01:02.2]}
16... Kxh7 {[%clk 0:01:41.7]} 17. Qh5+ {[%clk 0:01:01.8]} 17... Kg8 {[%clk
0:01:40.5]} 18. Ng6 {[%clk 0:01:01.8]} 18... Bd7 {[%clk 0:01:37.9]} 19. Bxd6
{[%clk 0:00:54]} 19... Qxd6 {[%clk 0:01:36.8]} 20. Rad1 {[%clk 0:00:54.6]} 1-0

[Event "*** Titled Tuesday Blitz"]
[Site "Chess.com"]
[Date "2021.04.20"]
[Round "11"]
[White "BigAl"]
[Black "beautroll"]
[Result "1-0"]
[WhiteElo "2589"]
[BlackElo "2468"]
[TimeControl "180+1"]
[EndTime "12:03:40 PDT"]
[Termination "BigAl won by resignation"]

1. Nf3 {[%clk 0:03:00.9]} 1... Nf6 {[%clk 0:02:59.1]} 2. g3 {[%clk 0:03:01.8]}
2... g6 {[%clk 0:02:59.4]} 3. Bg2 {[%clk 0:03:02.7]} 3... Bg7 {[%clk 0:03:00]}
4. O-O {[%clk 0:03:03.6]} 4... O-O {[%clk 0:03:00.3]} 5. d3 {[%clk 0:03:04.5]}
5... d5 {[%clk 0:02:58.8]} 6. Nbd2 {[%clk 0:03:04.4]} 6... c5 {[%clk 0:02:58.3]}
7. e4 {[%clk 0:03:04.8]} 7... Nc6 {[%clk 0:02:53.1]} 8. Re1 {[%clk 0:03:04.6]}
8... Qc7 {[%clk 0:02:51]} 9. c3 {[%clk 0:02:59.9]} 9... e5 {[%clk 0:02:40.9]}
10. exd5 {[%clk 0:02:38.7]} 10... Nxd5 {[%clk 0:02:41.8]} 11. Nc4 {[%clk
0:02:34.3]} 11... Rd8 {[%clk 0:02:34]} 12. Qe2 {[%clk 0:02:24.4]} 12... Bg4
{[%clk 0:02:30.7]} 13. h3 {[%clk 0:02:23.8]} 13... Bxf3 {[%clk 0:02:30.2]} 14.
Qxf3 {[%clk 0:02:20.9]} 14... b5 {[%clk 0:02:24.3]} 15. Ne3 {[%clk 0:02:09.2]}
15... Nce7 {[%clk 0:02:21.3]} 16. Nxd5 {[%clk 0:01:50.5]} 16... Nxd5 {[%clk
0:02:22.2]} 17. Bg5 {[%clk 0:01:35.2]} 17... Rd7 {[%clk 0:01:58.5]} 18. c4
{[%clk 0:01:28.8]} 18... bxc4 {[%clk 0:01:58.2]} 19. dxc4 {[%clk 0:01:28.7]}
19... Nb6 {[%clk 0:01:58.4]} 20. Rad1 {[%clk 0:01:25]} 20... Rad8 {[%clk
0:01:56.7]} 21. Bxd8 {[%clk 0:01:24.2]} 21... Qxd8 {[%clk 0:01:55.9]} 22. Rxd7
{[%clk 0:01:20.2]} 22... Qxd7 {[%clk 0:01:56.8]} 23. Rd1 {[%clk 0:01:20.6]}
23... Qa4 {[%clk 0:01:53.2]} 24. Rd8+ {[%clk 0:01:16.2]} 24... Bf8 {[%clk
0:01:53.5]} 25. Qf6 {[%clk 0:01:10]} 25... Nd7 {[%clk 0:01:11.7]} 26. Qd6 {[%clk
0:01:03.9]} 1-0

[Event "*** Titled Tuesday Blitz"]
[Site "Chess.com"]
[Date "2021.04.20"]
[Round "11"]
[White "LenkaPtacnikova"]
[Black "catzapto"]
[Result "1-0"]
[WhiteElo "2175"]
[BlackElo "2097"]
[TimeControl "180+1"]
[EndTime "12:03:53 PDT"]
[Termination "LenkaPtacnikova won by resignation"]

1. g4 {[%clk 0:03:00.7]} 1... d5 {[%clk 0:01:43.7]} 2. Bg2 {[%clk 0:02:56.8]}
2... Bxg4 {[%clk 0:01:21.2]} 3. c4 {[%clk 0:02:53.8]} 3... c6 {[%clk 0:01:14.6]}
4. cxd5 {[%clk 0:02:51]} 4... Bd7 {[%clk 0:01:05.8]} 5. dxc6 {[%clk 0:02:49.2]}
5... Bxc6 {[%clk 0:01:06]} 6. Nf3 {[%clk 0:02:48.9]} 6... Nf6 {[%clk 0:01:05.5]}
7. Nc3 {[%clk 0:02:48.3]} 7... e6 {[%clk 0:01:05.7]} 8. d3 {[%clk 0:02:43]} 8...
Be7 {[%clk 0:01:06]} 9. Bf4 {[%clk 0:02:39.3]} 9... O-O {[%clk 0:01:05.8]} 10.
O-O {[%clk 0:02:38.5]} 10... Nbd7 {[%clk 0:01:05.9]} 11. Rc1 {[%clk 0:02:26.4]}
11... Nh5 {[%clk 0:01:00.2]} 12. Bd2 {[%clk 0:02:23.9]} 12... f5 {[%clk
0:00:47.9]} 13. e4 {[%clk 0:02:05]} 13... fxe4 {[%clk 0:00:33.5]} 14. Nd4 {[%clk
0:02:04.6]} 14... Nf4 {[%clk 0:00:30.7]} 15. Bxf4 {[%clk 0:02:03.3]} 15... Rxf4
{[%clk 0:00:29.5]} 16. Nxe6 {[%clk 0:02:02.4]} 16... Qb8 {[%clk 0:00:16.6]} 17.
Nxf4 {[%clk 0:01:57]} 17... Qxf4 {[%clk 0:00:16]} 18. dxe4 {[%clk 0:01:52.2]}
18... Ne5 {[%clk 0:00:14.2]} 19. Nd5 {[%clk 0:01:46.3]} 19... Qg5 {[%clk
0:00:08.3]} 20. f4 {[%clk 0:01:39.3]} 20... Bc5+ {[%clk 0:00:05.7]} 21. Rxc5
{[%clk 0:01:38.1]} 1-0

[Event "*** Titled Tuesday Blitz"]
[Site "Chess.com"]
[Date "2021.04.20"]
[Round "11"]
[White "profofchess"]
[Black "kidagent"]
[Result "1-0"]
[WhiteElo "2516"]
[BlackElo "2347"]
[TimeControl "180+1"]
[EndTime "12:03:54 PDT"]
[Termination "profofchess won by resignation"]

1. e4 {[%clk 0:03:00.9]} 1... c5 {[%clk 0:02:59.8]} 2. Nf3 {[%clk 0:03:00.8]}
2... d6 {[%clk 0:03:00.3]} 3. d4 {[%clk 0:03:00.8]} 3... cxd4 {[%clk 0:03:01.2]}
4. Qxd4 {[%clk 0:03:01.2]} 4... Nc6 {[%clk 0:02:59.2]} 5. Qe3 {[%clk 0:03:01.1]}
5... Nf6 {[%clk 0:02:58.1]} 6. Be2 {[%clk 0:03:00.7]} 6... g6 {[%clk 0:02:57.1]}
7. O-O {[%clk 0:03:00.6]} 7... Bg7 {[%clk 0:02:57.3]} 8. Rd1 {[%clk 0:03:00.8]}
8... Qc7 {[%clk 0:02:47.8]} 9. c4 {[%clk 0:02:42.6]} 9... O-O {[%clk 0:02:43.4]}
10. h3 {[%clk 0:02:42.4]} 10... a6 {[%clk 0:02:41.2]} 11. Nc3 {[%clk 0:02:42.3]}
11... Ne5 {[%clk 0:02:29.7]} 12. Nxe5 {[%clk 0:02:39.8]} 12... dxe5 {[%clk
0:02:29.6]} 13. b3 {[%clk 0:02:34.3]} 13... Be6 {[%clk 0:02:26.9]} 14. Ba3
{[%clk 0:02:24.4]} 14... Rfd8 {[%clk 0:02:25.7]} 15. Nd5 {[%clk 0:02:13.5]}
15... Bxd5 {[%clk 0:02:18.3]} 16. cxd5 {[%clk 0:02:13.5]} 16... Bf8 {[%clk
0:02:06.6]} 17. Rac1 {[%clk 0:02:02.3]} 17... Qa5 {[%clk 0:02:04.5]} 18. Bb2
{[%clk 0:02:02.3]} 18... Qxa2 {[%clk 0:01:56.3]} 19. Bxe5 {[%clk 0:01:59.1]}
19... Qa3 {[%clk 0:01:51.1]} 20. d6 {[%clk 0:01:33]} 20... Nd7 {[%clk
0:01:48.6]} 21. dxe7 {[%clk 0:01:27.1]} 21... Qxe7 {[%clk 0:01:46.9]} 22. Ba1
{[%clk 0:01:24.5]} 22... Bg7 {[%clk 0:01:44.1]} 23. Bxg7 {[%clk 0:01:19]} 23...
Kxg7 {[%clk 0:01:43.8]} 24. Rc7 {[%clk 0:01:19.6]} 24... Qe6 {[%clk 0:01:26.9]}
25. Rxb7 {[%clk 0:01:07.6]} 25... Nf6 {[%clk 0:01:19.1]} 26. Rxd8 {[%clk
0:01:03]} 26... Rxd8 {[%clk 0:01:18.8]} 27. Bc4 {[%clk 0:01:02.6]} 27... Qxe4
{[%clk 0:01:11.5]} 28. Rxf7+ {[%clk 0:01:00.1]} 28... Kh8 {[%clk 0:01:06.6]} 29.
Rxf6 {[%clk 0:00:53.5]} 1-0

[Event "*** Titled Tuesday Blitz"]
[Site "Chess.com"]
[Date "2021.04.20"]
[Round "11"]
[White "WisdomGame"]
[Black "anon569"]
[Result "1-0"]
[WhiteElo "2112"]
[BlackElo "2216"]
[TimeControl "180+1"]
[EndTime "12:03:54 PDT"]
[Termination "WisdomGame won by resignation"]

1. Nf3 {[%clk 0:03:00.9]} 1... Nf6 {[%clk 0:02:56.3]} 2. g3 {[%clk 0:03:01.8]}
2... b5 {[%clk 0:02:53.9]} 3. Bg2 {[%clk 0:03:02.7]} 3... Bb7 {[%clk 0:02:53.8]}
4. O-O {[%clk 0:03:01.7]} 4... e6 {[%clk 0:02:52.5]} 5. c3 {[%clk 0:03:01.7]}
5... Be7 {[%clk 0:02:48.8]} 6. d4 {[%clk 0:03:00.9]} 6... d6 {[%clk 0:02:43.9]}
7. a4 {[%clk 0:02:55.7]} 7... a6 {[%clk 0:02:42.5]} 8. Qd3 {[%clk 0:02:53.7]}
8... Be4 {[%clk 0:02:25.2]} 9. Qd1 {[%clk 0:02:48.3]} 9... Nbd7 {[%clk
0:02:22.4]} 10. Nbd2 {[%clk 0:02:43.7]} 10... Bb7 {[%clk 0:02:15.6]} 11. Qb3
{[%clk 0:02:42]} 11... Bd5 {[%clk 0:01:58.4]} 12. Qc2 {[%clk 0:02:29.9]} 12...
e5 {[%clk 0:01:50.9]} 13. e4 {[%clk 0:02:28.9]} 13... Bb7 {[%clk 0:01:48.1]} 14.
d5 {[%clk 0:02:26]} 14... Nc5 {[%clk 0:01:36.3]} 15. axb5 {[%clk 0:02:09.8]}
15... axb5 {[%clk 0:01:34.1]} 16. Rxa8 {[%clk 0:02:10]} 16... Qxa8 {[%clk
0:01:27.5]} 17. b4 {[%clk 0:02:10.5]} 17... Qa4 {[%clk 0:01:05.3]} 18. Qb1
{[%clk 0:02:00.7]} 18... Ncd7 {[%clk 0:00:51.3]} 19. Nb3 {[%clk 0:01:59.7]}
19... Nb6 {[%clk 0:00:31.6]} 20. Na5 {[%clk 0:01:58.7]} 20... Ba6 {[%clk
0:00:26]} 21. Be3 {[%clk 0:01:56.8]} 21... Nc4 {[%clk 0:00:23.6]} 22. Nxc4
{[%clk 0:01:56.5]} 22... bxc4 {[%clk 0:00:24.1]} 23. Nd2 {[%clk 0:01:56.6]}
23... O-O {[%clk 0:00:22.9]} 24. Qb2 {[%clk 0:01:56.6]} 24... Qb5 {[%clk
0:00:17.3]} 25. Ra1 {[%clk 0:01:56]} 25... Ra8 {[%clk 0:00:16.3]} 26. Ra5 {[%clk
0:01:54.8]} 26... Qb8 {[%clk 0:00:15.5]} 27. Qa1 {[%clk 0:01:52.7]} 27... Nd7
{[%clk 0:00:13.7]} 28. Rxa6 {[%clk 0:01:48]} 1-0

[Event "*** Titled Tuesday Blitz"]
[Site "Chess.com"]
[Date "2021.04.20"]
[Round "11"]
[White "Mikhal867"]
[Black "dosto07"]
[Result "1-0"]
[WhiteElo "2441"]
[BlackElo "2318"]
[TimeControl "180+1"]
[EndTime "12:03:58 PDT"]
[Termination "Mikhal867 won by resignation"]

1. c4 {[%clk 0:02:33.9]} 1... e5 {[%clk 0:02:58.6]} 2. Nc3 {[%clk 0:02:33.1]}
2... Nf6 {[%clk 0:02:59]} 3. g3 {[%clk 0:02:32.3]} 3... d5 {[%clk 0:02:59.4]} 4.
cxd5 {[%clk 0:02:31.5]} 4... Nxd5 {[%clk 0:03:00.3]} 5. Bg2 {[%clk 0:02:31.1]}
5... Nb6 {[%clk 0:03:00.7]} 6. Nf3 {[%clk 0:02:30.8]} 6... Nc6 {[%clk
0:03:00.6]} 7. O-O {[%clk 0:02:29.8]} 7... Be7 {[%clk 0:03:00.8]} 8. d3 {[%clk
0:02:27.6]} 8... O-O {[%clk 0:02:59.8]} 9. a3 {[%clk 0:02:13.3]} 9... Re8 {[%clk
0:02:53.7]} 10. b4 {[%clk 0:02:12.6]} 10... Bf8 {[%clk 0:02:52.1]} 11. Bb2
{[%clk 0:02:10.2]} 11... Bg4 {[%clk 0:02:50.4]} 12. h3 {[%clk 0:02:09.2]} 12...
Bh5 {[%clk 0:02:50.2]} 13. Rc1 {[%clk 0:02:06.7]} 13... a5 {[%clk 0:02:49.8]}
14. b5 {[%clk 0:02:02.7]} 14... Nd4 {[%clk 0:02:50.2]} 15. Nxd4 {[%clk
0:01:41.3]} 15... exd4 {[%clk 0:02:49.2]} 16. Ne4 {[%clk 0:01:41.3]} 16... a4
{[%clk 0:02:30.3]} 17. g4 {[%clk 0:01:31.2]} 17... Bg6 {[%clk 0:02:29.4]} 18.
Ng3 {[%clk 0:01:28.6]} 18... Ra5 {[%clk 0:02:09.5]} 19. Bxb7 {[%clk 0:01:14.3]}
19... Rxb5 {[%clk 0:02:08.7]} 20. Ba1 {[%clk 0:01:11.3]} 20... Rb3 {[%clk
0:02:01.8]} 21. Bc6 {[%clk 0:01:08.6]} 21... Bxa3 {[%clk 0:01:55.1]} 22. Rc4
{[%clk 0:01:07.4]} 22... Bb4 {[%clk 0:01:38.6]} 23. Rxd4 {[%clk 0:01:04.3]}
23... Qc8 {[%clk 0:01:34.1]} 24. Bxa4 {[%clk 0:01:00.4]} 24... c5 {[%clk
0:01:09.9]} 25. Qxb3 {[%clk 0:00:51.3]} 25... cxd4 {[%clk 0:01:09.3]} 26. Bxe8
{[%clk 0:00:47.4]} 26... Qxe8 {[%clk 0:01:08.2]} 27. Qxb4 {[%clk 0:00:47.3]} 1-0

[Event "*** Titled Tuesday Blitz"]
[Site "Chess.com"]
[Date "2021.04.20"]
[Round "11"]
[White "ljuks68"]
[Black "vovachesss"]
[Result "0-1"]
[WhiteElo "2453"]
[BlackElo "2672"]
[TimeControl "180+1"]
[EndTime "12:04:27 PDT"]
[Termination "vovachesss won on time"]

1. e4 {[%clk 0:03:00.9]} 1... Nf6 {[%clk 0:02:57.5]} 2. e5 {[%clk 0:02:59.8]}
2... Nd5 {[%clk 0:02:58.2]} 3. c4 {[%clk 0:02:58.2]} 3... Nb6 {[%clk 0:02:58.6]}
4. d4 {[%clk 0:02:57.6]} 4... d6 {[%clk 0:02:59]} 5. f4 {[%clk 0:02:57.4]} 5...
dxe5 {[%clk 0:02:55.3]} 6. fxe5 {[%clk 0:02:56.9]} 6... Bf5 {[%clk 0:02:54.1]}
7. Nc3 {[%clk 0:02:55.9]} 7... e6 {[%clk 0:02:54.4]} 8. Nf3 {[%clk 0:02:54.3]}
8... c5 {[%clk 0:02:54.7]} 9. Be3 {[%clk 0:02:31.5]} 9... cxd4 {[%clk
0:02:49.8]} 10. Nxd4 {[%clk 0:02:31.3]} 10... Bg6 {[%clk 0:02:49.9]} 11. Ndb5
{[%clk 0:02:25.3]} 11... N8d7 {[%clk 0:02:39.5]} 12. Nd6+ {[%clk 0:02:12.4]}
12... Bxd6 {[%clk 0:02:33.7]} 13. Qxd6 {[%clk 0:02:12.8]} 13... Nc8 {[%clk
0:02:32.5]} 14. Qd4 {[%clk 0:02:11.6]} 14... O-O {[%clk 0:02:30.2]} 15. Be2
{[%clk 0:01:59]} 15... Ne7 {[%clk 0:02:23.9]} 16. O-O-O {[%clk 0:01:55.6]} 16...
Nf5 {[%clk 0:02:14.7]} 17. Qxd7 {[%clk 0:01:47.5]} 17... Nxe3 {[%clk 0:02:15]}
18. Qxd8 {[%clk 0:01:41.4]} 18... Raxd8 {[%clk 0:02:15.9]} 19. Rxd8 {[%clk
0:01:39.6]} 19... Rxd8 {[%clk 0:02:15.8]} 20. b3 {[%clk 0:01:38.3]} 20... Nxg2
{[%clk 0:02:11.8]} 21. Bf3 {[%clk 0:00:46.7]} 21... Rd3 {[%clk 0:02:11]} 22.
Bxg2 {[%clk 0:00:43.5]} 22... Rxc3+ {[%clk 0:02:11.2]} 23. Kd1 {[%clk
0:00:41.7]} 23... b6 {[%clk 0:02:02.8]} 24. Re1 {[%clk 0:00:30.9]} 24... Kf8
{[%clk 0:01:49.8]} 25. Be4 {[%clk 0:00:19.2]} 25... Bh5+ {[%clk 0:01:28.3]} 26.
Kd2 {[%clk 0:00:11.7]} 26... Rh3 {[%clk 0:01:28]} 27. Rh1 {[%clk 0:00:10.8]}
27... Ke7 {[%clk 0:01:25.8]} 28. Bg2 {[%clk 0:00:04.1]} 28... Rh4 {[%clk
0:01:23]} 0-1

[Event "*** Titled Tuesday Blitz"]
[Site "Chess.com"]
[Date "2021.04.20"]
[Round "11"]
[White "chessajedrezz2020"]
[Black "energie73"]
[Result "1-0"]
[WhiteElo "2697"]
[BlackElo "2365"]
[TimeControl "180+1"]
[EndTime "12:04:29 PDT"]
[Termination "chessajedrezz2020 won by resignation"]

1. Nf3 {[%clk 0:03:00.9]} 1... Nf6 {[%clk 0:02:57.4]} 2. d4 {[%clk 0:02:59.1]}
2... g6 {[%clk 0:02:53.9]} 3. Nc3 {[%clk 0:02:58.3]} 3... d6 {[%clk 0:02:50.3]}
4. e4 {[%clk 0:02:55.6]} 4... Bg7 {[%clk 0:02:49.1]} 5. h3 {[%clk 0:02:55]} 5...
O-O {[%clk 0:02:48.6]} 6. Bc4 {[%clk 0:02:52.2]} 6... a6 {[%clk 0:02:47.9]} 7.
a4 {[%clk 0:02:52.3]} 7... Nxe4 {[%clk 0:02:46.3]} 8. Bxf7+ {[%clk 0:02:51.6]}
8... Rxf7 {[%clk 0:02:45.8]} 9. Nxe4 {[%clk 0:02:52.5]} 9... h6 {[%clk
0:02:45.1]} 10. O-O {[%clk 0:02:52.1]} 10... Nc6 {[%clk 0:02:43.9]} 11. Re1
{[%clk 0:02:42.8]} 11... Bf5 {[%clk 0:02:42.3]} 12. Ng3 {[%clk 0:02:41]} 12...
Qd7 {[%clk 0:02:42.8]} 13. c3 {[%clk 0:02:37.9]} 13... Raf8 {[%clk 0:02:41]} 14.
Nxf5 {[%clk 0:02:35.1]} 14... Rxf5 {[%clk 0:02:31.6]} 15. Nh4 {[%clk 0:02:27.7]}
15... R5f6 {[%clk 0:02:21.8]} 16. d5 {[%clk 0:01:50.7]} 16... Ne5 {[%clk
0:02:16.8]} 17. f4 {[%clk 0:01:50.1]} 17... Nc4 {[%clk 0:02:10.4]} 18. Qd3
{[%clk 0:01:49.6]} 18... Nb6 {[%clk 0:02:10.4]} 19. Nxg6 {[%clk 0:01:48.4]}
19... R8f7 {[%clk 0:02:08.1]} 20. f5 {[%clk 0:00:55]} 20... Rxf5 {[%clk
0:01:56.1]} 21. Nxe7+ {[%clk 0:00:46.1]} 21... Rxe7 {[%clk 0:01:43]} 22. Rxe7
{[%clk 0:00:45.4]} 22... Qxe7 {[%clk 0:01:43.9]} 23. Qxf5 {[%clk 0:00:45.5]}
23... Qe1+ {[%clk 0:01:39.6]} 24. Qf1 {[%clk 0:00:36.6]} 24... Qe4 {[%clk
0:01:38.7]} 25. Bd2 {[%clk 0:00:26.2]} 25... Nxd5 {[%clk 0:01:35.6]} 26. Re1
{[%clk 0:00:25.2]} 26... Qxa4 {[%clk 0:01:35.5]} 27. Qf5 {[%clk 0:00:21.1]}
27... Qc6 {[%clk 0:01:24]} 28. Bxh6 {[%clk 0:00:13.2]} 28... Bxh6 {[%clk
0:01:18.5]} 29. Qg6+ {[%clk 0:00:13.1]} 29... Bg7 {[%clk 0:01:16.8]} 30. Re8+
{[%clk 0:00:12.4]} 30... Qxe8 {[%clk 0:01:17.1]} 31. Qxe8+ {[%clk 0:00:13]}
31... Bf8 {[%clk 0:01:18]} 32. Qe6+ {[%clk 0:00:13.1]} 1-0